[Event "Late-Titled-Tuesday-Blitz-September-19-2023"]
[Site "Chess.com"]
[Date "2023.09.19"]
[Round "3"]
[White "WPWPWP-2015"]
[Black "AlexNovitz"]
[Result "1-0"]
[WhiteElo "2517"]
[BlackElo "2245"]
[TimeControl "180+1"]
[EndTime "14:26:31 PDT"]
[Termination "WPWPWP-2015 won on time"]

1. d4 {[%clk 0:03:00.9]} 1... Nf6 {[%clk 0:02:59.4]} 2. c4 {[%clk 0:02:59.5]}
2... e6 {[%clk 0:02:59.6]} 3. Nf3 {[%clk 0:02:56.8]} 3... d5 {[%clk 0:02:59.3]}
4. Nc3 {[%clk 0:02:54.9]} 4... Bb4 {[%clk 0:02:57.5]} 5. Qc2 {[%clk 0:02:54]}
5... O-O {[%clk 0:02:56.4]} 6. g3 {[%clk 0:02:53.2]} 6... b6 {[%clk 0:02:54.8]}
7. Bg2 {[%clk 0:02:53.1]} 7... Bb7 {[%clk 0:02:54.4]} 8. Ne5 {[%clk 0:02:49.6]}
8... Nbd7 {[%clk 0:02:52.1]} 9. O-O {[%clk 0:02:46.3]} 9... Bxc3 {[%clk
0:02:49.7]} 10. bxc3 {[%clk 0:02:45.1]} 10... Nxe5 {[%clk 0:02:33.1]} 11. dxe5
{[%clk 0:02:40.1]} 11... Nd7 {[%clk 0:02:33.7]} 12. cxd5 {[%clk 0:02:24.9]}
12... Bxd5 {[%clk 0:02:32.4]} 13. e4 {[%clk 0:02:22.6]} 13... Bc4 {[%clk
0:02:27.6]} 14. Rd1 {[%clk 0:02:21.9]} 14... Qe7 {[%clk 0:02:26.1]} 15. f4
{[%clk 0:02:01.4]} 15... Nc5 {[%clk 0:02:17.5]} 16. Be3 {[%clk 0:01:58.1]} 16...
Rfd8 {[%clk 0:02:14.1]} 17. Rd4 {[%clk 0:01:57.5]} 17... b5 {[%clk 0:02:02.1]}
18. Rad1 {[%clk 0:01:53.4]} 18... Na4 {[%clk 0:01:50.7]} 19. f5 {[%clk
0:01:42.9]} 19... c5 {[%clk 0:01:37.5]} 20. Rd6 {[%clk 0:01:31.3]} 20... exf5
{[%clk 0:01:31.6]} 21. Rxd8+ {[%clk 0:01:05.3]} 21... Rxd8 {[%clk 0:01:29.3]}
22. Rxd8+ {[%clk 0:01:05]} 22... Qxd8 {[%clk 0:01:28.2]} 23. exf5 {[%clk
0:01:05.2]} 23... Qd3 {[%clk 0:01:19.7]} 24. Qxd3 {[%clk 0:00:49.8]} 24... Bxd3
{[%clk 0:01:20.6]} 25. g4 {[%clk 0:00:45.2]} 25... h5 {[%clk 0:01:17.1]} 26. h3
{[%clk 0:00:44.7]} 26... hxg4 {[%clk 0:01:16.8]} 27. hxg4 {[%clk 0:00:45]} 27...
g6 {[%clk 0:01:09.7]} 28. e6 {[%clk 0:00:33.9]} 28... fxe6 {[%clk 0:01:03.9]}
29. fxe6 {[%clk 0:00:33.6]} 29... Bc4 {[%clk 0:00:32.3]} 30. e7 {[%clk
0:00:28.5]} 30... Kf7 {[%clk 0:00:31.8]} 31. Bg5 {[%clk 0:00:28.1]} 31... Nb6
{[%clk 0:00:01.5]} 32. Bc6 {[%clk 0:00:27.3]} 1-0

[Event "Late-Titled-Tuesday-Blitz-September-19-2023"]
[Site "Chess.com"]
[Date "2023.09.19"]
[Round "3"]
[White "johnathan113"]
[Black "FabianoCaruana"]
[Result "1-0"]
[WhiteElo "2726"]
[BlackElo "3042"]
[TimeControl "180+1"]
[EndTime "14:26:32 PDT"]
[Termination "johnathan113 won by resignation"]

1. c4 {[%clk 0:03:00.9]} 1... e5 {[%clk 0:02:59.1]} 2. g3 {[%clk 0:03:00.9]}
2... Nf6 {[%clk 0:02:58.4]} 3. Bg2 {[%clk 0:03:01.1]} 3... c6 {[%clk 0:02:58.9]}
4. a3 {[%clk 0:02:58.2]} 4... d5 {[%clk 0:02:57.4]} 5. cxd5 {[%clk 0:02:59.1]}
5... cxd5 {[%clk 0:02:58.2]} 6. d4 {[%clk 0:02:59.7]} 6... e4 {[%clk 0:02:58.7]}
7. Nc3 {[%clk 0:02:59.2]} 7... h6 {[%clk 0:02:54.1]} 8. Nh3 {[%clk 0:02:58.1]}
8... Nc6 {[%clk 0:02:54.3]} 9. O-O {[%clk 0:02:52]} 9... Be7 {[%clk 0:02:54.4]}
10. Bf4 {[%clk 0:02:37.8]} 10... Be6 {[%clk 0:02:47.5]} 11. Be5 {[%clk
0:02:34.4]} 11... g5 {[%clk 0:02:30]} 12. f3 {[%clk 0:02:04]} 12... O-O {[%clk
0:02:23.6]} 13. Bxf6 {[%clk 0:01:33.4]} 13... Bxf6 {[%clk 0:02:22.9]} 14. e3
{[%clk 0:01:34]} 14... exf3 {[%clk 0:02:01.5]} 15. Qxf3 {[%clk 0:01:34.9]} 15...
Bxd4 {[%clk 0:01:59.7]} 16. exd4 {[%clk 0:01:31.5]} 16... g4 {[%clk 0:02:00.1]}
17. Qf4 {[%clk 0:01:17.5]} 17... gxh3 {[%clk 0:01:59.4]} 18. Qxh6 {[%clk
0:01:16.9]} 18... hxg2 {[%clk 0:01:37.8]} 19. Rf6 {[%clk 0:01:15]} 19... Re8
{[%clk 0:01:38.1]} 20. Re1 {[%clk 0:00:45.7]} 20... Nxd4 {[%clk 0:01:22]} 21.
Re5 {[%clk 0:00:37.6]} 21... Bf5 {[%clk 0:01:17]} 22. Qg5+ {[%clk 0:00:27]}
22... Kh8 {[%clk 0:00:37.3]} 23. Qh6+ {[%clk 0:00:09.2]} 23... Bh7 {[%clk
0:00:31.4]} 24. Rh5 {[%clk 0:00:08.6]} 24... Nf3+ {[%clk 0:00:20.9]} 25. Kxg2
{[%clk 0:00:02.8]} 25... Ng5 {[%clk 0:00:18.1]} 26. Rxf7 {[%clk 0:00:01.6]}
26... Re2+ {[%clk 0:00:13.2]} 27. Nxe2 {[%clk 0:00:01.1]} 27... Qg8 {[%clk
0:00:14.1]} 28. Qf6+ {[%clk 0:00:01.1]} 1-0

[Event "Late-Titled-Tuesday-Blitz-September-19-2023"]
[Site "Chess.com"]
[Date "2023.09.19"]
[Round "3"]
[White "DTChess"]
[Black "CraiggoryC"]
[Result "1-0"]
[WhiteElo "2516"]
[BlackElo "2239"]
[TimeControl "180+1"]
[EndTime "14:26:32 PDT"]
[Termination "DTChess won by checkmate"]

1. e4 {[%clk 0:03:00.9]} 1... e6 {[%clk 0:02:58.1]} 2. d4 {[%clk 0:03:00.7]}
2... d5 {[%clk 0:02:58.5]} 3. Nc3 {[%clk 0:03:00.7]} 3... Bb4 {[%clk 0:02:58.3]}
4. e5 {[%clk 0:03:00.8]} 4... c5 {[%clk 0:02:59]} 5. a3 {[%clk 0:03:00.8]} 5...
Bxc3+ {[%clk 0:02:59.7]} 6. bxc3 {[%clk 0:03:01.7]} 6... Ne7 {[%clk 0:03:00.3]}
7. Nf3 {[%clk 0:03:01.9]} 7... Nbc6 {[%clk 0:02:58.2]} 8. Bd3 {[%clk 0:02:59.9]}
8... c4 {[%clk 0:02:53.2]} 9. Bf1 {[%clk 0:02:58.1]} 9... Qa5 {[%clk 0:02:48.9]}
10. Bd2 {[%clk 0:02:57.8]} 10... Bd7 {[%clk 0:02:49.5]} 11. g3 {[%clk
0:02:57.6]} 11... f6 {[%clk 0:02:49]} 12. exf6 {[%clk 0:02:57.6]} 12... gxf6
{[%clk 0:02:49]} 13. Bg2 {[%clk 0:02:58.2]} 13... O-O-O {[%clk 0:02:44.1]} 14.
O-O {[%clk 0:02:58.3]} 14... Kb8 {[%clk 0:02:38]} 15. a4 {[%clk 0:02:57]} 15...
h5 {[%clk 0:02:16.4]} 16. Re1 {[%clk 0:02:45.8]} 16... Nf5 {[%clk 0:02:05.2]}
17. Bh3 {[%clk 0:02:38.5]} 17... Nce7 {[%clk 0:01:27.4]} 18. Bf4+ {[%clk
0:02:31.7]} 18... Ka8 {[%clk 0:01:27.2]} 19. Qd2 {[%clk 0:02:32.2]} 19... h4
{[%clk 0:01:15.4]} 20. g4 {[%clk 0:02:20.6]} 20... Rdg8 {[%clk 0:01:14.4]} 21.
Kh1 {[%clk 0:02:14.9]} 21... Ng7 {[%clk 0:00:57.4]} 22. g5 {[%clk 0:02:05]}
22... fxg5 {[%clk 0:00:53.3]} 23. Nxg5 {[%clk 0:02:00.1]} 23... Nh5 {[%clk
0:00:36]} 24. Be5 {[%clk 0:01:53.9]} 24... Rh6 {[%clk 0:00:27]} 25. Rg1 {[%clk
0:01:44.2]} 25... Rhg6 {[%clk 0:00:24]} 26. f4 {[%clk 0:01:35.1]} 26... Nc6
{[%clk 0:00:08.3]} 27. Bd6 {[%clk 0:01:20.4]} 27... Qd8 {[%clk 0:00:07.4]} 28.
Nf3 {[%clk 0:01:09.3]} 28... Qf6 {[%clk 0:00:06.6]} 29. Rxg6 {[%clk 0:01:03.4]}
29... Rxg6 {[%clk 0:00:06.7]} 30. Ne5 {[%clk 0:00:58.4]} 30... Nxe5 {[%clk
0:00:05.9]} 31. Bxe5 {[%clk 0:00:58.3]} 31... Qf7 {[%clk 0:00:04]} 32. a5 {[%clk
0:00:55.1]} 32... Nf6 {[%clk 0:00:03.6]} 33. Rg1 {[%clk 0:00:49.9]} 33... Ne4
{[%clk 0:00:03.7]} 34. Qe1 {[%clk 0:00:47.5]} 34... a6 {[%clk 0:00:03.9]} 35.
Qxh4 {[%clk 0:00:44.3]} 35... Rxg1+ {[%clk 0:00:03.8]} 36. Kxg1 {[%clk
0:00:44.4]} 36... Qg6+ {[%clk 0:00:04.3]} 37. Bg4 {[%clk 0:00:40.3]} 37... Nxc3
{[%clk 0:00:02.3]} 38. Qd8+ {[%clk 0:00:38.8]} 38... Ka7 {[%clk 0:00:01.6]} 39.
Bb8+ {[%clk 0:00:38.7]} 39... Ka8 {[%clk 0:00:01.5]} 40. Bc7+ {[%clk 0:00:39.2]}
40... Ka7 {[%clk 0:00:02.1]} 41. Qb8# {[%clk 0:00:39.3]} 1-0

[Event "Late-Titled-Tuesday-Blitz-September-19-2023"]
[Site "Chess.com"]
[Date "2023.09.19"]
[Round "3"]
[White "Pawnpusherschessaccademy"]
[Black "Nf3c5"]
[Result "1-0"]
[WhiteElo "2348"]
[BlackElo "2534"]
[TimeControl "180+1"]
[EndTime "14:26:35 PDT"]
[Termination "Pawnpusherschessaccademy won on time"]

1. e4 {[%clk 0:03:00.9]} 1... c5 {[%clk 0:02:57]} 2. Nf3 {[%clk 0:03:01.4]} 2...
Nc6 {[%clk 0:02:57]} 3. Bb5 {[%clk 0:03:00.8]} 3... e6 {[%clk 0:02:56.4]} 4. O-O
{[%clk 0:02:58.3]} 4... Nge7 {[%clk 0:02:55.2]} 5. Re1 {[%clk 0:02:58.7]} 5...
Nd4 {[%clk 0:02:51.8]} 6. Nxd4 {[%clk 0:02:45.6]} 6... cxd4 {[%clk 0:02:52.7]}
7. c3 {[%clk 0:02:46.1]} 7... a6 {[%clk 0:02:51.6]} 8. Bf1 {[%clk 0:02:42.5]}
8... Nc6 {[%clk 0:02:50.4]} 9. d3 {[%clk 0:02:34.7]} 9... Bc5 {[%clk 0:02:46.4]}
10. Nd2 {[%clk 0:02:29.7]} 10... O-O {[%clk 0:02:44]} 11. Nb3 {[%clk 0:02:27.1]}
11... Ba7 {[%clk 0:02:42.6]} 12. cxd4 {[%clk 0:02:24.9]} 12... Nxd4 {[%clk
0:02:42.7]} 13. Be3 {[%clk 0:02:21.3]} 13... Nc6 {[%clk 0:01:54.1]} 14. d4
{[%clk 0:02:19.4]} 14... d6 {[%clk 0:01:43.1]} 15. Qd2 {[%clk 0:02:19.3]} 15...
Ne7 {[%clk 0:01:32.6]} 16. Rac1 {[%clk 0:02:18.3]} 16... Bd7 {[%clk 0:01:32.5]}
17. Qb4 {[%clk 0:01:58.3]} 17... Bc6 {[%clk 0:01:29]} 18. Bf4 {[%clk 0:01:58.8]}
18... e5 {[%clk 0:01:15.8]} 19. dxe5 {[%clk 0:01:34.1]} 19... Ng6 {[%clk
0:01:15.2]} 20. Be3 {[%clk 0:01:34.6]} 20... Bxe3 {[%clk 0:01:03.5]} 21. Rxe3
{[%clk 0:01:35.5]} 21... dxe5 {[%clk 0:01:02.7]} 22. Na5 {[%clk 0:01:34.7]}
22... Qf6 {[%clk 0:00:32]} 23. Nxc6 {[%clk 0:01:30.5]} 23... bxc6 {[%clk
0:00:19.9]} 24. Qa4 {[%clk 0:01:30]} 24... Ne7 {[%clk 0:00:15.5]} 25. Rc5 {[%clk
0:00:59.6]} 25... Rfb8 {[%clk 0:00:11.3]} 26. Qc2 {[%clk 0:00:56.2]} 26... Rb6
{[%clk 0:00:11.1]} 27. b3 {[%clk 0:00:52.2]} 27... Rab8 {[%clk 0:00:11.4]} 28.
Bc4 {[%clk 0:00:43.7]} 28... Qd6 {[%clk 0:00:05.1]} 29. Ra5 {[%clk 0:00:37]}
29... Rf8 {[%clk 0:00:04.4]} 30. Rd3 {[%clk 0:00:34]} 30... Qb4 {[%clk
0:00:03.9]} 31. Qd2 {[%clk 0:00:23]} 1-0

[Event "Late-Titled-Tuesday-Blitz-September-19-2023"]
[Site "Chess.com"]
[Date "2023.09.19"]
[Round "3"]
[White "Djager97"]
[Black "szefru"]
[Result "1-0"]
[WhiteElo "2537"]
[BlackElo "2300"]
[TimeControl "180+1"]
[EndTime "14:26:38 PDT"]
[Termination "Djager97 won by resignation"]

1. e4 {[%clk 0:03:00.9]} 1... e5 {[%clk 0:03:00.1]} 2. Nf3 {[%clk 0:03:00.7]}
2... Nc6 {[%clk 0:03:00.9]} 3. d4 {[%clk 0:02:59.9]} 3... exd4 {[%clk
0:03:01.8]} 4. Nxd4 {[%clk 0:03:00.8]} 4... Bc5 {[%clk 0:03:01.3]} 5. Nb3 {[%clk
0:03:00.7]} 5... Bb6 {[%clk 0:03:00.6]} 6. Qe2 {[%clk 0:03:01.3]} 6... d6 {[%clk
0:02:53]} 7. Nc3 {[%clk 0:03:01.1]} 7... Be6 {[%clk 0:02:48.6]} 8. Be3 {[%clk
0:03:00.8]} 8... Bxe3 {[%clk 0:02:38.7]} 9. Qxe3 {[%clk 0:03:01.7]} 9... Bxb3
{[%clk 0:02:34.1]} 10. axb3 {[%clk 0:03:01]} 10... Nge7 {[%clk 0:02:34.4]} 11.
h4 {[%clk 0:02:45.7]} 11... Qd7 {[%clk 0:02:30.9]} 12. h5 {[%clk 0:02:43.1]}
12... h6 {[%clk 0:02:28.9]} 13. O-O-O {[%clk 0:02:41.8]} 13... O-O-O {[%clk
0:02:27.3]} 14. Bc4 {[%clk 0:02:33.4]} 14... Ne5 {[%clk 0:02:21.3]} 15. Qxa7
{[%clk 0:02:32.5]} 15... c6 {[%clk 0:02:09.2]} 16. Na4 {[%clk 0:02:09.4]} 16...
Kc7 {[%clk 0:01:55.8]} 17. Nc5 {[%clk 0:01:21.1]} 17... Qc8 {[%clk 0:01:55.4]}
18. Na6+ {[%clk 0:01:12.1]} 18... Kd7 {[%clk 0:01:55.3]} 19. Rxd6+ {[%clk
0:00:48.3]} 19... Kxd6 {[%clk 0:01:52.2]} 20. Rd1+ {[%clk 0:00:47.5]} 20... Nd5
{[%clk 0:01:52.2]} 21. Qc5+ {[%clk 0:00:21.5]} 21... Ke6 {[%clk 0:01:51.6]} 22.
exd5+ {[%clk 0:00:21.4]} 22... cxd5 {[%clk 0:01:08.1]} 23. Nc7+ {[%clk 0:00:21]}
23... Kf5 {[%clk 0:01:00.2]} 24. Bxd5 {[%clk 0:00:19]} 24... Kf6 {[%clk
0:00:44.6]} 25. f4 {[%clk 0:00:18.1]} 25... Nc6 {[%clk 0:00:39.8]} 26. Qc3+
{[%clk 0:00:10.5]} 26... Ke7 {[%clk 0:00:38.3]} 27. Qxg7 {[%clk 0:00:11.1]}
27... Qxc7 {[%clk 0:00:35.8]} 28. Qxf7+ {[%clk 0:00:11.2]} 28... Kd6 {[%clk
0:00:36.1]} 29. Be4+ {[%clk 0:00:09.8]} 29... Kc5 {[%clk 0:00:32]} 30. Qxc7
{[%clk 0:00:09.4]} 30... Rxd1+ {[%clk 0:00:31.3]} 31. Kxd1 {[%clk 0:00:10.3]}
31... Rd8+ {[%clk 0:00:31]} 32. Kc1 {[%clk 0:00:09.1]} 32... Re8 {[%clk
0:00:29.6]} 33. Bxc6 {[%clk 0:00:08.8]} 33... bxc6 {[%clk 0:00:30.5]} 34. b4+
{[%clk 0:00:07.9]} 34... Kd4 {[%clk 0:00:29.7]} 35. Qd6+ {[%clk 0:00:07.4]}
35... Ke3 {[%clk 0:00:28.9]} 36. Qd2+ {[%clk 0:00:06.4]} 36... Ke4 {[%clk
0:00:27.2]} 37. Qe2+ {[%clk 0:00:06.6]} 1-0

[Event "Late-Titled-Tuesday-Blitz-September-19-2023"]
[Site "Chess.com"]
[Date "2023.09.19"]
[Round "3"]
[White "PassedPawnMustPushed"]
[Black "TC2304"]
[Result "0-1"]
[WhiteElo "2124"]
[BlackElo "2375"]
[TimeControl "180+1"]
[EndTime "14:26:40 PDT"]
[Termination "TC2304 won by resignation"]

1. e4 {[%clk 0:03:00.9]} 1... Nc6 {[%clk 0:02:57.7]} 2. d4 {[%clk 0:03:00.1]}
2... e5 {[%clk 0:02:57.7]} 3. d5 {[%clk 0:03:00.2]} 3... Nce7 {[%clk 0:02:58.3]}
4. c4 {[%clk 0:02:59.4]} 4... Ng6 {[%clk 0:02:58.7]} 5. Nc3 {[%clk 0:02:57.7]}
5... Bb4 {[%clk 0:02:59.3]} 6. Qc2 {[%clk 0:02:51.9]} 6... Nf6 {[%clk
0:02:53.3]} 7. f3 {[%clk 0:02:51.9]} 7... d6 {[%clk 0:02:52.1]} 8. a3 {[%clk
0:02:51.8]} 8... Bc5 {[%clk 0:02:50]} 9. b4 {[%clk 0:02:50.5]} 9... Bd4 {[%clk
0:02:50.2]} 10. Nge2 {[%clk 0:02:49.5]} 10... c5 {[%clk 0:02:45]} 11. dxc6
{[%clk 0:02:48.9]} 11... bxc6 {[%clk 0:02:45.5]} 12. Bg5 {[%clk 0:02:31]} 12...
h6 {[%clk 0:02:41.8]} 13. Bxf6 {[%clk 0:02:24.1]} 13... Qxf6 {[%clk 0:02:42.7]}
14. b5 {[%clk 0:02:07.5]} 14... cxb5 {[%clk 0:02:37.1]} 15. Nd5 {[%clk
0:02:07.6]} 15... Qd8 {[%clk 0:02:35.1]} 16. Nxd4 {[%clk 0:02:07.4]} 16... exd4
{[%clk 0:02:36]} 17. cxb5 {[%clk 0:02:06.1]} 17... O-O {[%clk 0:02:31.4]} 18.
Bd3 {[%clk 0:01:44]} 18... Be6 {[%clk 0:02:30.5]} 19. O-O {[%clk 0:01:37.7]}
19... Rc8 {[%clk 0:02:29.7]} 20. Qa4 {[%clk 0:01:33.4]} 20... Bxd5 {[%clk
0:02:23.4]} 21. exd5 {[%clk 0:01:34.3]} 21... Nf4 {[%clk 0:02:17.9]} 22. Qxd4
{[%clk 0:01:29.7]} 22... Qg5 {[%clk 0:02:18.5]} 23. g3 {[%clk 0:01:24]} 23...
Nxd3 {[%clk 0:02:14.5]} 24. Qxd3 {[%clk 0:01:24.9]} 24... Rc5 {[%clk 0:02:13.8]}
25. Rad1 {[%clk 0:01:10.3]} 25... Rfc8 {[%clk 0:02:09.7]} 26. f4 {[%clk
0:01:10.1]} 26... Qh5 {[%clk 0:02:05.3]} 27. Rf2 {[%clk 0:00:58.9]} 27... Rc3
{[%clk 0:02:05.3]} 28. Qd4 {[%clk 0:00:53]} 28... Rxa3 {[%clk 0:02:02.6]} 29.
Re1 {[%clk 0:00:48.1]} 29... Rc7 {[%clk 0:01:23]} 30. f5 {[%clk 0:00:47.4]}
30... Rac3 {[%clk 0:01:12.1]} 31. f6 {[%clk 0:00:41.3]} 31... g6 {[%clk
0:01:10]} 32. Kg2 {[%clk 0:00:25.1]} 32... Qg5 {[%clk 0:01:03.8]} 33. Re7 {[%clk
0:00:16.3]} 33... R3c5 {[%clk 0:01:00.3]} 34. Rxc7 {[%clk 0:00:15.7]} 34... Rxc7
{[%clk 0:01:01.2]} 35. Re2 {[%clk 0:00:14]} 35... Rc5 {[%clk 0:00:54.3]} 36.
Re8+ {[%clk 0:00:10.8]} 36... Kh7 {[%clk 0:00:54.9]} 37. Re7 {[%clk 0:00:09.8]}
37... Rc2+ {[%clk 0:00:55.4]} 38. Kh3 {[%clk 0:00:07.8]} 38... Qf5+ {[%clk
0:00:51.6]} 39. Qg4 {[%clk 0:00:07]} 39... Rxh2+ {[%clk 0:00:51.8]} 40. Kxh2
{[%clk 0:00:05.9]} 40... Qxg4 {[%clk 0:00:52.5]} 41. Rxf7+ {[%clk 0:00:06.7]}
41... Kg8 {[%clk 0:00:53]} 42. Rg7+ {[%clk 0:00:06.2]} 42... Kf8 {[%clk
0:00:53.6]} 43. Rxa7 {[%clk 0:00:06.5]} 43... Qe2+ {[%clk 0:00:46.8]} 44. Kh3
{[%clk 0:00:06.4]} 44... Qxb5 {[%clk 0:00:47.5]} 45. Ra8+ {[%clk 0:00:06.8]}
45... Kf7 {[%clk 0:00:47.6]} 46. Rb8 {[%clk 0:00:03.9]} 0-1

[Event "Late-Titled-Tuesday-Blitz-September-19-2023"]
[Site "Chess.com"]
[Date "2023.09.19"]
[Round "3"]
[White "Lion_DL"]
[Black "Thjop"]
[Result "0-1"]
[WhiteElo "2441"]
[BlackElo "2608"]
[TimeControl "180+1"]
[EndTime "14:26:45 PDT"]
[Termination "Thjop won by resignation"]

1. d4 {[%clk 0:03:00.9]} 1... Nf6 {[%clk 0:02:55.7]} 2. c4 {[%clk 0:03:00.6]}
2... g6 {[%clk 0:02:55.6]} 3. h4 {[%clk 0:03:01.1]} 3... Bg7 {[%clk 0:02:56.5]}
4. Nc3 {[%clk 0:03:00.9]} 4... d6 {[%clk 0:02:51.8]} 5. e4 {[%clk 0:03:01]} 5...
Nc6 {[%clk 0:02:47.3]} 6. d5 {[%clk 0:02:56.9]} 6... Ne5 {[%clk 0:02:47.2]} 7.
Be2 {[%clk 0:02:57.6]} 7... h5 {[%clk 0:02:44.4]} 8. Nf3 {[%clk 0:02:58.1]} 8...
Nxf3+ {[%clk 0:02:40.4]} 9. Bxf3 {[%clk 0:02:59]} 9... c5 {[%clk 0:02:37.1]} 10.
Bg5 {[%clk 0:02:57.9]} 10... Ng4 {[%clk 0:02:32.8]} 11. O-O {[%clk 0:02:48.8]}
11... a6 {[%clk 0:02:24.4]} 12. a4 {[%clk 0:02:47.5]} 12... Qb6 {[%clk
0:02:20.6]} 13. Qc2 {[%clk 0:02:41.9]} 13... Bd7 {[%clk 0:02:11.3]} 14. a5
{[%clk 0:02:28.4]} 14... Qc7 {[%clk 0:02:04.4]} 15. Rfb1 {[%clk 0:02:14]} 15...
Bf6 {[%clk 0:01:28.2]} 16. Bxf6 {[%clk 0:02:06.9]} 16... Nxf6 {[%clk 0:01:29.1]}
17. b4 {[%clk 0:02:02.2]} 17... cxb4 {[%clk 0:01:25.5]} 18. Rxb4 {[%clk
0:02:03.1]} 18... O-O {[%clk 0:01:20.7]} 19. Na4 {[%clk 0:01:59.8]} 19... Bxa4
{[%clk 0:01:19.2]} 20. Qxa4 {[%clk 0:02:00.7]} 20... Nd7 {[%clk 0:01:18.1]} 21.
Rab1 {[%clk 0:01:56.1]} 21... Nc5 {[%clk 0:01:14.7]} 22. Qa3 {[%clk 0:01:56.7]}
22... Rab8 {[%clk 0:01:12.7]} 23. Rb6 {[%clk 0:01:26.1]} 23... Nd7 {[%clk
0:01:02.3]} 24. R6b4 {[%clk 0:01:24.8]} 24... Rfc8 {[%clk 0:00:57.3]} 25. Be2
{[%clk 0:01:22.7]} 25... Kg7 {[%clk 0:00:50.8]} 26. f4 {[%clk 0:01:08]} 26...
Nc5 {[%clk 0:00:47.5]} 27. Qb2+ {[%clk 0:00:53.3]} 27... f6 {[%clk 0:00:46.8]}
28. e5 {[%clk 0:00:54.2]} 28... dxe5 {[%clk 0:00:44.2]} 29. fxe5 {[%clk
0:00:54.8]} 29... Qxe5 {[%clk 0:00:42.4]} 30. Qxe5 {[%clk 0:00:52.7]} 30... fxe5
{[%clk 0:00:43.3]} 31. Rb6 {[%clk 0:00:50.5]} 31... Rf8 {[%clk 0:00:34.8]} 32.
g4 {[%clk 0:00:43.6]} 32... hxg4 {[%clk 0:00:33.3]} 33. Bxg4 {[%clk 0:00:44.3]}
33... Rf4 {[%clk 0:00:33.5]} 34. Be6 {[%clk 0:00:40.4]} 34... Rxh4 {[%clk
0:00:27]} 35. Rf1 {[%clk 0:00:35.4]} 35... Rf4 {[%clk 0:00:24.1]} 36. Rxf4
{[%clk 0:00:32.8]} 36... exf4 {[%clk 0:00:25]} 37. Kf2 {[%clk 0:00:32.3]} 37...
Kf6 {[%clk 0:00:24.5]} 38. Kf3 {[%clk 0:00:27.5]} 38... Ke5 {[%clk 0:00:23.7]}
39. Bf7 {[%clk 0:00:24.9]} 39... g5 {[%clk 0:00:23.6]} 40. Rg6 {[%clk
0:00:24.7]} 40... Kf5 {[%clk 0:00:23.7]} 41. Rg7 {[%clk 0:00:22.8]} 41... Rh8
{[%clk 0:00:21.1]} 42. Be6+ {[%clk 0:00:20.4]} 42... Nxe6 {[%clk 0:00:20.7]} 43.
dxe6 {[%clk 0:00:21.3]} 43... Kf6 {[%clk 0:00:18.4]} 44. Rf7+ {[%clk 0:00:20.9]}
44... Kxe6 {[%clk 0:00:18.8]} 0-1

[Event "Late-Titled-Tuesday-Blitz-September-19-2023"]
[Site "Chess.com"]
[Date "2023.09.19"]
[Round "3"]
[White "Msb2"]
[Black "Rutricks"]
[Result "1-0"]
[WhiteElo "3092"]
[BlackElo "2712"]
[TimeControl "180+1"]
[EndTime "14:26:48 PDT"]
[Termination "Msb2 won on time"]

1. d4 {[%clk 0:03:00.9]} 1... g6 {[%clk 0:02:57.5]} 2. c4 {[%clk 0:03:01.3]}
2... Bg7 {[%clk 0:02:58.3]} 3. e4 {[%clk 0:03:02]} 3... d6 {[%clk 0:02:59]} 4.
Nc3 {[%clk 0:03:02.6]} 4... Nd7 {[%clk 0:02:59.7]} 5. Nf3 {[%clk 0:03:02.4]}
5... e5 {[%clk 0:03:00.4]} 6. Be2 {[%clk 0:03:02.3]} 6... Ne7 {[%clk 0:03:00.8]}
7. h4 {[%clk 0:03:02.5]} 7... h6 {[%clk 0:03:00.8]} 8. h5 {[%clk 0:02:48.8]}
8... g5 {[%clk 0:03:01.1]} 9. d5 {[%clk 0:02:49.4]} 9... a5 {[%clk 0:02:59.9]}
10. g4 {[%clk 0:02:49.5]} 10... Nc5 {[%clk 0:03:00.3]} 11. Nd2 {[%clk
0:02:49.1]} 11... c6 {[%clk 0:02:58.7]} 12. f3 {[%clk 0:02:49.1]} 12... cxd5
{[%clk 0:02:59]} 13. cxd5 {[%clk 0:02:49.5]} 13... O-O {[%clk 0:02:58.5]} 14.
O-O {[%clk 0:02:48.8]} 14... Bd7 {[%clk 0:02:56.4]} 15. a4 {[%clk 0:02:49.1]}
15... Qb6 {[%clk 0:02:50.1]} 16. Nc4 {[%clk 0:02:47.8]} 16... Qc7 {[%clk
0:02:46]} 17. Be3 {[%clk 0:02:46.8]} 17... Nc8 {[%clk 0:02:44.2]} 18. Rc1 {[%clk
0:02:46.2]} 18... Qb8 {[%clk 0:02:43.5]} 19. b3 {[%clk 0:02:38.9]} 19... Rd8
{[%clk 0:02:33.1]} 20. Kg2 {[%clk 0:02:38]} 20... Be8 {[%clk 0:02:32.8]} 21.
Nxd6 {[%clk 0:02:26]} 21... Qxd6 {[%clk 0:02:30.2]} 22. Nb5 {[%clk 0:02:25.8]}
22... Bxb5 {[%clk 0:02:30.9]} 23. Bxb5 {[%clk 0:02:12.6]} 23... b6 {[%clk
0:02:24.8]} 24. Rc3 {[%clk 0:01:55.7]} 24... Bf8 {[%clk 0:02:21.2]} 25. Qb1
{[%clk 0:01:55.1]} 25... Qf6 {[%clk 0:02:15.9]} 26. Rfc1 {[%clk 0:01:49.4]}
26... Na7 {[%clk 0:02:00.8]} 27. Be2 {[%clk 0:01:48.9]} 27... Rac8 {[%clk
0:02:00.8]} 28. Rc4 {[%clk 0:01:48.2]} 28... Nd7 {[%clk 0:01:54.9]} 29. Rc7
{[%clk 0:01:41]} 29... Rxc7 {[%clk 0:01:09.7]} 30. Rxc7 {[%clk 0:01:41.9]} 30...
Nc8 {[%clk 0:01:09.5]} 31. Ba6 {[%clk 0:01:42.3]} 31... Nd6 {[%clk 0:00:56]} 32.
Rc6 {[%clk 0:01:42.4]} 32... Ra8 {[%clk 0:00:45.4]} 33. Qd3 {[%clk 0:01:32.3]}
33... Qd8 {[%clk 0:00:34.3]} 34. Qe2 {[%clk 0:01:23.8]} 34... Nc5 {[%clk
0:00:31]} 35. Bb5 {[%clk 0:01:20.6]} 35... Rb8 {[%clk 0:00:25.7]} 36. Qc2 {[%clk
0:01:09.8]} 36... Nxb5 {[%clk 0:00:26]} 37. axb5 {[%clk 0:01:10.7]} 37... Bd6
{[%clk 0:00:26.4]} 38. Qc4 {[%clk 0:01:08]} 38... Qd7 {[%clk 0:00:20.2]} 39. Kh3
{[%clk 0:01:07.9]} 39... Kg7 {[%clk 0:00:20]} 40. b4 {[%clk 0:01:05.2]} 40...
axb4 {[%clk 0:00:20.2]} 41. Qxb4 {[%clk 0:01:06.1]} 41... Ra8 {[%clk 0:00:16.3]}
42. Rxb6 {[%clk 0:01:04.1]} 42... Qe7 {[%clk 0:00:14.2]} 43. Rxd6 {[%clk
0:01:03.4]} 43... Qxd6 {[%clk 0:00:15.1]} 44. Bxc5 {[%clk 0:00:52.7]} 44... Qf6
{[%clk 0:00:15]} 45. Qc3 {[%clk 0:00:53.4]} 45... Ra2 {[%clk 0:00:05.4]} 46. Qe3
{[%clk 0:00:53.6]} 46... Qd8 {[%clk 0:00:02.9]} 47. b6 {[%clk 0:00:48.9]} 47...
Qd7 {[%clk 0:00:03.2]} 48. Qb3 {[%clk 0:00:47.1]} 48... Ra1 {[%clk 0:00:02.2]}
49. b7 {[%clk 0:00:46.1]} 1-0